fUSD/lending_fUSD_20250522
["ID","MTS","AMOUNT","RATE_DAILY","PERIOD"]
[361923962,1747892109519,632.0,0.00027,120]
[361923967,1747892165343,898.80735855,0.00027397,120]
[361923973,1747892311729,-200.0,0.0001176,2]
[361923974,1747892315778,-162.5002564,0.0001176,2]
[361923975,1747892319522,-245.14006397,0.0001176,2]
[361923976,1747892320569,-229.37873128,0.0001176,2]
[361923977,1747892322126,-208.72747989,0.0001176,2]
[361923978,1747892323713,-347.64057054,0.0001176,2]
[361923979,1747892325319,-295.29682209,0.0001176,2]
[361923980,1747892328687,-35.50207583,0.0001176,2]
[361923981,1747892328711,-128.75868653,0.0001176,2]
[361923982,1747892331466,-45.76131347,0.0001176,2]
[361923983,1747892369734,3156.967159,0.0002739,120]
[361923999,1747892707140,-1044.40123311,0.000118,2]
[361924000,1747892707168,-162.23954917,0.00011888,2]
[361924001,1747892707196,-200.0,0.00011894,2]
[361924002,1747892707223,-1200.0,0.00011898,2]
[361924003,1747892707252,-300.0,0.00011899,2]
[361924004,1747892707278,-150.0,0.00011899,2]
[361924005,1747892707304,-14151.35921772,0.000119,2]
[361924013,1747892825663,171.0,0.00027397,120]
[361924043,1747893031359,-300.0,0.00011899,2]
[361924044,1747893031369,-1445.83036407,0.000119,2]
[361924045,1747893031441,-14005.10081821,0.000119,2]
[361924046,1747893031451,-1000.0,0.000119,2]
[361924047,1747893031462,-300.0,0.000119,4]
[361924048,1747893031473,-169.75740889,0.000119,2]
[361924049,1747893031483,-1813.07085698,0.000119,2]
[361924050,1747893031494,-899.4967,0.000119,2]
[361924051,1747893031503,-577.06709099,0.000119,2]
[361924052,1747893031535,-467.33414212,0.000119,2]
[361924053,1747893031545,-200.0,0.00011917,2]
[361924054,1747893031555,-250.0,0.00011936,2]
[361924055,1747893031565,-2.06585748,0.00011963,2]
[361924056,1747893031577,-810.00831848,0.00011963,2]
[361924057,1747893031597,-400.0,0.00011963,2]
[361924058,1747893031609,-1799.95488431,0.00011963,2]
[361924059,1747893031774,-9348.66065001,0.00011963,2]
[361924060,1747893031784,-496.2554866,0.00011973,2]
[361924061,1747893031795,-501.28329626,0.00011973,2]
[361924062,1747893031805,-500.0,0.00011973,2]
[361924063,1747893031816,-224.67053461,0.00011973,2]
[361924064,1747893031826,-501.22338747,0.00011973,2]
[361924065,1747893031836,-560.27970867,0.00011973,2]
[361924066,1747893031846,-512.30017201,0.00011973,2]
[361924067,1747893031856,-396.81943174,0.0001199,2]
[361924068,1747893031867,-500.0,0.00011999,2]
[361924069,1747893031876,-500.0,0.00011999,2]
[361924070,1747893031886,-500.0,0.00011999,2]
[361924071,1747893031896,-500.0,0.00011999,2]
[361924072,1747893031906,-500.0,0.00011999,2]
[361924074,1747893031916,-500.0,0.00011999,2]
[361924075,1747893031927,-500.0,0.00011999,2]
[361924076,1747893031939,-500.0,0.00011999,2]
[361924077,1747893031949,-500.0,0.00011999,2]
[361924078,1747893031960,-500.0,0.00011999,2]
[361924079,1747893031970,-500.0,0.00011999,2]
[361924080,1747893031980,-500.0,0.00011999,2]
[361924081,1747893031991,-500.0,0.00011999,2]
[361924082,1747893032001,-256.86456174,0.00011999,2]
[361924083,1747893032011,-419.00906942,0.00011999,2]
[361924084,1747893032022,-44498.1101295,0.00011999,2]
[361924085,1747893032034,-12403.80373137,0.00011999,2]
[361924090,1747893037416,-409316.3998452,0.00011999,2]
[361924273,1747893039631,-803.25144,0.00011999,2]
[361924290,1747893039792,-9.21395421,0.00011999,2]
[361924292,1747893039803,-788.8881,0.00011999,2]
[361924623,1747893043127,-10729.98379398,0.00011999,2]
[361924992,1747893047822,-1135.47793351,0.00011999,2]
[361924993,1747893362972,-239.97792417,0.00011694,2]
[361924994,1747893365092,-165.5822956,0.00011694,2]
[361924995,1747893366655,-195.33088231,0.00011694,2]
[361924996,1747893368263,-197.47902788,0.00011694,2]
[361925005,1747893578859,-1631.76377121,0.000118,2]
[361925006,1747893578886,-516.0806,0.00011899,2]
[361925007,1747893578911,-250.0,0.00011899,2]
[361925008,1747893578940,-200.0,0.00011899,2]
[361925009,1747893578966,-300.0,0.00011899,2]
[361925010,1747893578991,-1200.0,0.00011899,2]
[361925011,1747893579018,-300.0,0.00011899,2]
[361925012,1747893579042,-2869.4416,0.000119,2]
[361925013,1747893579066,-82932.71402879,0.000119,2]
[361925015,1747893628019,200.0,0.00027397,120]
[361925016,1747893640588,600.0,0.00027397,120]
[361925021,1747893709224,150.0,0.00011493,2]
[361925023,1747893907821,3003.69,0.00027397,120]
[361925039,1747894190859,-158.82604295,0.00011555,2]
[361925043,1747894195448,-91.17395705,0.00011555,2]
[361925047,1747894231558,-300.0,0.000117,4]
[361925048,1747894231568,-865.22892603,0.0001177,2]
[361925049,1747894231579,-154.45636971,0.000118,2]
[361925050,1747894231589,-700.0,0.000118,4]
[361925051,1747894231599,-1200.0,0.00011898,2]
[361925052,1747894231610,-11735.6805,0.00011899,2]
[361925053,1747894231620,-79332.33877121,0.000119,2]
[361925054,1747894231640,-1000.0,0.000119,2]
[361925055,1747894231656,-5000.0,0.000119,2]
[361925056,1747894231666,-197.69335325,0.000119,2]
[361925057,1747894231677,-1468.58739417,0.000119,2]
[361925058,1747894231687,-1100.0,0.000119,4]
[361925059,1747894231698,-164.30901996,0.000119,2]
[361925060,1747894231708,-167.79948344,0.000119,2]
[361925061,1747894231719,-383.09041622,0.000119,2]
[361925062,1747894231730,-380.65,0.00011904,2]
[361925063,1747894231740,-502.39777938,0.00011973,2]
[361925064,1747894231751,-153.04225253,0.00011973,2]
[361925065,1747894231762,-500.0,0.00011973,2]
[361925066,1747894231773,-500.0,0.00011973,2]
[361925067,1747894231784,-500.0,0.00011973,2]
[361925068,1747894231795,-500.0,0.00011973,2]
[361925069,1747894231806,-500.50526181,0.00011973,2]
[361925070,1747894231816,-501.21010304,0.00011973,2]
[361925071,1747894231826,-501.8266559,0.00011973,2]
[361925072,1747894231837,-500.0,0.00011973,2]
[361925073,1747894231847,-502.7761219,0.00011973,2]
[361925074,1747894231857,-500.0,0.00011973,2]
[361925075,1747894231869,-318.15325419,0.0001199,2]
[361925076,1747894231879,-268.09983587,0.00011999,2]
[361925077,1747894231890,-254.31036369,0.00011999,2]
[361925078,1747894231900,-181.52031142,0.00011999,2]
[361925079,1747894231911,-182.86715139,0.00011999,2]
[361925080,1747894231922,-500.0,0.00011999,2]
[361925081,1747894231932,-500.0,0.00011999,2]
[361925082,1747894231942,-500.0,0.00011999,2]
[361925083,1747894231953,-500.0,0.00011999,2]
[361925084,1747894231963,-500.0,0.00011999,2]
[361925087,1747894231973,-500.0,0.00011999,2]
[361925090,1747894231984,-500.0,0.00011999,2]
[361925092,1747894231994,-500.0,0.00011999,2]
[361925094,1747894232004,-500.0,0.00011999,2]
[361925096,1747894232015,-500.0,0.00011999,2]
[361925098,1747894232025,-500.0,0.00011999,2]
[361925100,1747894232035,-500.0,0.00011999,2]
[361925102,1747894232046,-500.0,0.00011999,2]
[361925104,1747894232056,-500.0,0.00011999,2]
[361925107,1747894232066,-500.0,0.00011999,2]
[361925109,1747894232082,-500.0,0.00011999,2]
[361925111,1747894232092,-500.0,0.00011999,2]
[361925113,1747894232102,-500.0,0.00011999,2]
[361925115,1747894232112,-500.0,0.00011999,2]
[361925117,1747894232122,-500.0,0.00011999,2]
[361925119,1747894232135,-500.0,0.00011999,2]
[361925121,1747894232146,-500.0,0.00011999,2]
[361925124,1747894232156,-500.0,0.00011999,2]
[361925126,1747894232166,-500.0,0.00011999,2]
[361925128,1747894232178,-500.0,0.00011999,2]
[361925130,1747894232188,-500.0,0.00011999,2]
[361925132,1747894232198,-500.0,0.00011999,2]
[361925134,1747894232209,-500.0,0.00011999,2]
[361925136,1747894232219,-500.0,0.00011999,2]
[361925138,1747894232230,-500.0,0.00011999,2]
[361925140,1747894232240,-500.0,0.00011999,2]
[361925142,1747894232251,-500.0,0.00011999,2]
[361925145,1747894232262,-500.0,0.00011999,2]
[361925147,1747894232273,-500.0,0.00011999,2]
[361925149,1747894232283,-500.0,0.00011999,2]
[361925151,1747894232294,-500.0,0.00011999,2]
[361925153,1747894232304,-500.0,0.00011999,2]
[361925155,1747894232315,-500.0,0.00011999,2]
[361925157,1747894232325,-500.0,0.00011999,2]
[361925159,1747894232335,-500.0,0.00011999,2]
[361925161,1747894232346,-500.0,0.00011999,2]
[361925163,1747894232357,-500.0,0.00011999,2]
[361925166,1747894232370,-500.0,0.00011999,2]
[361925168,1747894232380,-500.0,0.00011999,2]
[361925170,1747894232390,-500.0,0.00011999,2]
[361925172,1747894232400,-500.0,0.00011999,2]
[361925174,1747894232410,-500.0,0.00011999,2]
[361925176,1747894232420,-500.0,0.00011999,2]
[361925178,1747894232431,-500.0,0.00011999,2]
[361925180,1747894232441,-500.0,0.00011999,2]
[361925182,1747894232451,-500.0,0.00011999,2]
[361925184,1747894232462,-500.0,0.00011999,2]
[361925186,1747894232472,-500.0,0.00011999,2]
[361925188,1747894232482,-500.0,0.00011999,2]
[361925190,1747894232493,-500.0,0.00011999,2]
[361925192,1747894232503,-500.0,0.00011999,2]
[361925194,1747894232514,-500.0,0.00011999,2]
[361925196,1747894232525,-500.0,0.00011999,2]
[361925198,1747894232535,-500.0,0.00011999,2]
[361925200,1747894232546,-500.0,0.00011999,2]
[361925202,1747894232556,-500.0,0.00011999,2]
[361925204,1747894232567,-500.0,0.00011999,2]
[361925207,1747894232577,-500.0,0.00011999,2]
[361925209,1747894232588,-500.0,0.00011999,2]
[361925211,1747894232598,-500.0,0.00011999,2]
[361925213,1747894232608,-377.24422238,0.00011999,2]
[361925215,1747894232618,-500.0,0.00011999,2]
[361925217,1747894232628,-500.0,0.00011999,2]
[361925219,1747894232639,-500.0,0.00011999,2]
[361925221,1747894232650,-500.0,0.00011999,2]
[361925223,1747894232660,-500.0,0.00011999,2]
[361925225,1747894232671,-500.0,0.00011999,2]
[361925227,1747894232681,-500.0,0.00011999,2]
[361925229,1747894232691,-500.0,0.00011999,2]
[361925231,1747894232702,-500.0,0.00011999,2]
[361925233,1747894232712,-500.0,0.00011999,2]
[361925235,1747894232722,-500.0,0.00011999,2]
[361925237,1747894232733,-500.0,0.00011999,2]
[361925238,1747894232743,-450.00000001,0.00011999,2]
[361925239,1747894232754,-500.0,0.00011999,2]
[361925240,1747894232764,-500.0,0.00011999,2]
[361925241,1747894232774,-488.00936345,0.00011999,2]
[361925242,1747894232786,-322236.27145195,0.00011999,2]
[361925307,1747894233506,-76859.10484516,0.00011999,2]
[361925309,1747894233521,-342247.58749687,0.00011999,2]
[361925311,1747894233531,-18471.02750312,0.00012,2]
[361925314,1747894233552,-598.88591085,0.00012,2]
[361925316,1747894233564,-7719.29338366,0.00012,2]
[361925318,1747894233576,-5377.6508,0.00012,2]
[361925321,1747894233599,-5760.14896224,0.00012,2]
[361925324,1747894233610,-169114.22,0.00012,2]
[361925326,1747894233622,-425.18333004,0.00012,2]
[361925329,1747894233645,-16483.66364517,0.00012,2]
[361925542,1747894237485,-164.76,0.00011989,2]
[361925543,1747894237497,-164.76,0.00011989,2]
[361925544,1747894237507,-164.76,0.00011989,2]
[361925545,1747894237519,-164.76,0.00011989,2]
[361925546,1747894237528,-56.12096669,0.00011989,2]
[361925547,1747894237709,-108.63903331,0.00011989,2]
[361925548,1747894237719,-164.76,0.00011989,2]
[361925549,1747894237730,-164.76,0.00011989,2]
[361925550,1747894237741,-164.76,0.00011989,2]
[361925551,1747894237751,-164.76,0.00011989,2]
[361925552,1747894237761,-164.76,0.00011989,2]
[361925553,1747894237771,-1611.02810259,0.00012,2]
[361925554,1747894237780,-1117.30211986,0.00012,2]
[361925555,1747894237792,-7670.69161602,0.00012,2]
[361925556,1747894237803,-2974.69504756,0.00012,2]
[361925558,1747894237819,-469.85305596,0.00012,2]
[361925718,1747894239776,-8025.54,0.00012,2]
[361925720,1747894239787,-1282.0,0.00012,2]
[361925723,1747894239799,-999.89332,0.00012,2]
[361925726,1747894239819,-689.46547078,0.00012,2]
[361925749,1747894240043,-17600.0,0.00012,2]
[361925752,1747894240056,-713.83985466,0.00012,2]
[361925754,1747894240068,-4793.71889113,0.00012,2]
[361925771,1747894240227,-71.5424814,0.00012,2]
[361926058,1747894243114,-23370.63378569,0.00012,2]
[361926081,1747894243339,-4771.9998,0.00012,2]
[361926083,1747894243351,-59104.10277847,0.00012,2]
[361926308,1747894245522,-7476.79039789,0.00012,2]
[361926310,1747894245537,-19904.84880599,0.00012,2]
[361926316,1747894245598,-16330.3829492,0.00012,2]
[361926318,1747894245611,-402.80313002,0.00012,2]
[361926320,1747894245623,-117062.29680732,0.00012,2]
[361926322,1747894245634,-16680.57486744,0.00012,2]
[361926337,1747894245784,-857.30599154,0.00012,2]
[361926345,1747894245849,-18903.54656596,0.00012,2]
[361926347,1747894245860,-1000.0,0.00012,2]
[361926349,1747894245872,-73284.97065872,0.00012,2]
[361926353,1747894245904,-321202.39154635,0.00012,2]
[361926355,1747894245914,-500.0,0.00012,2]
[361926357,1747894245924,-247.55,0.00012114,2]
[361926359,1747894245933,-150.0,0.00012186,7]
[361926361,1747894245942,-2751.0,0.00012247,2]
[361926363,1747894245952,-217.45,0.00012388,2]
[361926365,1747894245962,-155.11,0.000125,2]
[361926367,1747894245972,-227.0,0.00012509,2]
[361926369,1747894245982,-886.30680926,0.00012521,2]
[361926371,1747894245992,-2697.07,0.00012692,2]
[361926373,1747894246002,-283.76,0.00012822,2]
[361926375,1747894246011,-250.0,0.0001287,2]
[361926377,1747894246021,-166.85,0.00012944,2]
[361926379,1747894246031,-200.0,0.00013089,2]
[361926381,1747894246041,-200.0,0.0001309,2]
[361926383,1747894246050,-200.0,0.000131,2]
[361926385,1747894246059,-151.0,0.00013351,2]
[361926387,1747894246069,-151.0,0.00013354,2]
[361926389,1747894246079,-151.0,0.00013359,2]
[361926391,1747894246088,-151.0,0.00013362,2]
[361926392,1747894246097,-915.41,0.00013378,2]
[361926394,1747894246106,-380.65,0.00013392,2]
[361926396,1747894246116,-155.58,0.00013699,2]
[361926398,1747894246126,-257.9,0.000137,2]
[361926400,1747894246137,-257.9,0.000137,2]
[361926402,1747894246147,-1468.58739408,0.0001428,2]
[361926404,1747894246156,-250.0,0.00014511,2]
[361926406,1747894246166,-380.65,0.0001488,2]
[361926408,1747894246175,-164.30901988,0.00014955,2]
[361926410,1747894246185,-200.0,0.000151,2]
[361926412,1747894246194,-383.09041615,0.00015195,2]
[361926414,1747894246204,-2874.68,0.00015352,2]
[361926416,1747894246215,-154.0,0.00015352,2]
[361926418,1747894246225,-880.0,0.00015352,2]
[361926422,1747894246235,-1151.0,0.00015352,2]
[361926423,1747894246245,-150.0,0.00015693,2]
[361926426,1747894246255,-570.52601016,0.00015693,2]
[361926428,1747894246265,-380.65,0.00016368,2]
[361926430,1747894246275,-6950.38696296,0.00016459,2]
[361926431,1747894246285,-579.45,0.00016523,2]
[361926433,1747894246294,-500.0,0.00016548,2]
[361926435,1747894246304,-1468.58739408,0.00016661,2]
[361926437,1747894246313,-247.55,0.00016959,2]
[361926439,1747894246322,-160.56,0.00017157,2]
[361926441,1747894246331,-169.81,0.00017414,2]
[361926443,1747894246340,-414.104,0.00017566,2]
[361926445,1747894246350,-804.0,0.00017566,2]
[361926446,1747894246359,-399.949,0.00017566,2]
[361926447,1747894246368,-558.459,0.00017566,2]
[361926448,1747894246378,-1301.167,0.00017566,2]
[361926449,1747894246387,-927.45,0.00017566,2]
[361926450,1747894246397,-1482.216,0.00017566,2]
[361926451,1747894246407,-1500.0,0.00017795,2]
[361926452,1747894246416,-380.65,0.00017856,2]
[361926453,1747894246425,-162.0,0.00017888,2]
[361926454,1747894246438,-3697.44,0.00017904,2]
[361926455,1747894246447,-500.0,0.00017905,3]
[361926456,1747894246458,-162.0,0.00017906,2]
[361926457,1747894246468,-23900.0,0.00017907,2]
[361926458,1747894246477,-162.0,0.00017924,2]
[361926460,1747894246487,-152.6,0.0001793,2]
[361926462,1747894246496,-162.0,0.00017942,2]
[361926463,1747894246506,-162.0,0.00017959,2]
[361926465,1747894246516,-162.0,0.00017977,2]
[361926466,1747894246527,-164.30901988,0.0001801,2]
[361926467,1747894246537,-1000.0,0.00018018,2]
[361926468,1747894246546,-155.63,0.00018161,2]
[361926469,1747894246555,-880.0,0.00018352,2]
[361926470,1747894246565,-287.299,0.00018352,2]
[361926471,1747894246574,-383.09041615,0.00018491,2]
[361926472,1747894246584,-209.42421648,0.000186,2]
[361926473,1747894246594,-209.42421646,0.000186,2]
[361926474,1747894246603,-579.45,0.00018787,2]
[361926475,1747894246613,-1468.58739408,0.00019041,2]
[361926476,1747894246622,-209.42421646,0.0002015,2]
[361926477,1747894246632,-1000.0,0.0002027,2]
[361926478,1747894246641,-2834.28106536,0.00020315,4]
[361926479,1747894246650,-216.0,0.00021,2]
[361926480,1747894246659,-579.45,0.00021051,2]
[361926481,1747894246668,-164.30901988,0.00021064,2]
[361926482,1747894246678,-1468.58739408,0.00021422,2]
[361926483,1747894246687,-1500.0,0.00021644,2]
[361926484,1747894246697,-383.09041615,0.00021786,2]
[361926485,1747894246707,-155.58,0.00021918,2]
[361926486,1747894246715,-3036.12758892,0.00021927,2]
[361926487,1747894246725,-1946.944,0.00022063,2]
[361926488,1747894246734,-172.829,0.00022063,2]
[361926489,1747894246744,-200.0,0.000221,2]
[361926490,1747894246754,-1000.0,0.00022522,2]
[361926491,1747894246765,-200.0,0.000231,2]
[361926492,1747894246774,-579.45,0.00023314,2]
[361926493,1747894246785,-209.42421646,0.00023775,9]
[361926494,1747894246794,-1468.58739408,0.00023802,2]
[361926495,1747894246804,-165.5,0.00023836,2]
[361926496,1747894246814,-200.0,0.000241,2]
[361926497,1747894246823,-164.30901988,0.00024119,2]
[361926498,1747894246834,-150.0,0.000247,2]
[361926500,1747894246844,-1000.0,0.00024774,2]
[361926502,1747894246854,-150.0,0.00024799,2]
[361926504,1747894246863,-234719.208334,0.000248,2]
[361926506,1747894246872,-500.0,0.0002485,2]
[361926508,1747894246882,-500.0,0.0002485,2]
[361926510,1747894246892,-500.0,0.0002485,2]
[361926512,1747894246901,-233915.25379,0.000249,2]
[361926514,1747894246910,-550.77753084,0.000249,2]
[361926516,1747894246919,-383.09041615,0.00025082,2]
[361926518,1747894246930,-207.0,0.00025085,2]
[361926520,1747894246940,-5561.0,0.000255,5]
[361926522,1747894246949,-579.45,0.00025578,2]
[361926524,1747894246958,-1085.52,0.00025786,2]
[361926526,1747894246967,-6809.42,0.00025786,2]
[361926527,1747894246976,-150.99,0.00025786,2]
[361926528,1747894246986,-150.99,0.00025786,2]
[361926529,1747894246995,-3766.85,0.00025786,2]
[361926530,1747894247006,-6180.29,0.00025786,10]
[361926531,1747894247015,-710.48,0.00025786,2]
[361926532,1747894247026,-159.61,0.000259,7]
[361926533,1747894247035,-169.81,0.00026121,2]
[361926534,1747894247044,-150.0,0.00026169,2]
[361926535,1747894247055,-1468.58739408,0.00026183,2]
[361926536,1747894247064,-1000.0,0.00027026,2]
[361926537,1747894247074,-164.30901988,0.00027174,2]
[361926538,1747894247085,-1000.0,0.00027397,20]
[361926540,1747894247095,-200.0,0.00027397,2]
[361926542,1747894247104,-209.42421646,0.000274,17]
[361926544,1747894247114,-500.0,0.00027424,2]
[361926546,1747894247124,-269.0,0.00027424,2]
[361926548,1747894247136,-500.0,0.00027424,2]
[361926550,1747894247146,-500.0,0.00027424,2]
[361926551,1747894247156,-261.27747531,0.00027424,2]
[361926553,1747894247166,-1000.0,0.0002744,20]
[361926554,1747894247176,-500.0,0.00027451,2]
[361926555,1747894247186,-500.0,0.00027451,2]
[361926556,1747894247196,-500.0,0.00027451,2]
[361926557,1747894247207,-500.0,0.00027479,2]
[361926558,1747894247216,-468.2377355,0.00027479,2]
[361926559,1747894247226,-500.0,0.00027479,2]
[361926560,1747894247236,-500.0,0.00027506,2]
[361926561,1747894247245,-500.0,0.00027506,2]
[361926562,1747894247254,-500.0,0.00027534,2]
[361926563,1747894247264,-150.0,0.00027539,2]
[361926564,1747894247275,-500.0,0.00027561,2]
[361926565,1747894247285,-500.0,0.00027588,2]
[361926566,1747894247294,-500.0,0.00027616,2]
[361926567,1747894247304,-500.0,0.00027643,2]
[361926569,1747894247313,-500.0,0.00027671,2]
[361926570,1747894247323,-500.0,0.00027698,2]
[361926572,1747894247332,-500.0,0.00027725,2]
[361926573,1747894247343,-323.79607025,0.00027753,2]
[361926574,1747894247352,-579.45,0.00027842,2]
[361926575,1747894247361,-5000.0,0.00028,30]
[361926576,1747894247372,-383.09041615,0.00028377,2]
[361926577,1747894247382,-1000.0,0.000284,15]
[361926578,1747894247397,-1468.58739408,0.00028563,2]
[361926579,1747894247407,-207.0,0.00028576,7]
[361926580,1747894247417,-500.0,0.0003,120]
[361926581,1747894247428,-6000.0,0.0003,15]
[361926582,1747894247439,-579.45,0.00030106,2]
[361926583,1747894247450,-155.58,0.00030137,2]
[361926584,1747894247460,-500.0,0.00030137,2]
[361926585,1747894247471,-456.29316295,0.00030137,2]
[361926586,1747894247482,-164.30901988,0.00030229,15]
[361926587,1747894247495,-357.606459,0.00030416,120]
[361926588,1747894247505,-222.44,0.000307,14]
[361926589,1747894247514,-167.53,0.00030762,2]
[361926590,1747894247525,-200.0,0.0003083,2]
[361926591,1747894247535,-1468.58739408,0.00030944,2]
[361926592,1747894247545,-209.42421646,0.00031025,24]
[361926593,1747894247555,-549.0,0.000314,2]
[361926594,1747894247564,-383.09041615,0.00031673,2]
[361926595,1747894247574,-200.0,0.0003169,2]
[361926596,1747894247584,-1000.0,0.00032,120]
[361926597,1747894247595,-458.34,0.00032055,2]
[361926598,1747894247606,-458.34,0.00032055,2]
[361926599,1747894247617,-778.5,0.00032055,2]
[361926600,1747894247627,-458.34,0.00032055,2]
[361926601,1747894247637,-458.34,0.00032055,2]
[361926602,1747894247648,-805.62,0.00032055,2]
[361926603,1747894248004,-207.0,0.00032068,13]
[361926604,1747894248015,-1012.43402122,0.00032269,10]
[361926605,1747894248025,-579.45,0.0003237,2]
[361926606,1747894248035,-500.0,0.000325,120]
[361926607,1747894248045,-200.0,0.0003255,2]
[361926608,1747894248055,-2941.26772564,0.000328,7]
[361926609,1747894248065,-1500.0,0.000328,11]
[361926610,1747894248075,-271.59339695,0.00032873,5]
[361926611,1747894248084,-504.43010818,0.00032873,5]
[361926612,1747894248094,-300.0,0.00032875,10]
[361926613,1747894248104,-168.575198,0.00032876,5]
[361926614,1747894248114,-166.666666,0.00032876,5]
[361926615,1747894248123,-420.0,0.00032876,5]
[361926616,1747894248135,-421.73569815,0.00032876,5]
[361926617,1747894248147,-468.13996464,0.00032876,5]
[361926618,1747894248156,-420.98292327,0.00032876,5]
[361926619,1747894248166,-420.99800752,0.00032876,5]
[361926620,1747894248176,-216.69604604,0.00032876,5]
[361926621,1747894248186,-421.01905027,0.00032876,5]
[361926622,1747894248196,-420.0,0.00032876,5]
[361926623,1747894248205,-421.73231844,0.00032876,5]
[361926624,1747894248215,-420.0,0.00032876,5]
[361926625,1747894248226,-420.0,0.00032876,5]
[361926626,1747894248235,-420.0,0.00032876,5]
[361926627,1747894248244,-420.0,0.00032876,5]
[361926628,1747894248254,-151.0,0.00032876,7]
[361926629,1747894248263,-420.0,0.00032876,5]
[361926630,1747894248273,-420.0,0.00032876,5]
[361926631,1747894248283,-420.0,0.00032876,5]
[361926632,1747894248292,-420.0,0.00032876,5]
[361926633,1747894248302,-153.055075,0.00032876,7]
[361926634,1747894248311,-153.607196,0.00032876,7]
[361926635,1747894248321,-420.0,0.00032876,5]
[361926636,1747894248331,-153.607196,0.00032876,7]
[361926637,1747894248341,-422.54298403,0.00032876,5]
[361926638,1747894248351,-171.051971,0.00032876,5]
[361926639,1747894248361,-420.0,0.00032876,5]
[361926640,1747894248371,-421.11332245,0.00032876,5]
[361926641,1747894248381,-420.0,0.00032876,5]
[361926642,1747894248391,-420.0,0.00032876,5]
[361926643,1747894248401,-420.0,0.00032876,5]
[361926644,1747894248411,-420.0,0.00032876,5]
[361926645,1747894248420,-420.0,0.00032876,5]
[361926646,1747894248430,-420.0,0.00032876,5]
[361926647,1747894248440,-420.0,0.00032876,5]
[361926648,1747894248450,-420.0,0.00032876,5]
[361926649,1747894248459,-420.0,0.00032876,5]
[361926650,1747894248469,-420.0,0.00032876,5]
[361926651,1747894248479,-420.0,0.00032876,5]
[361926652,1747894248488,-420.0,0.00032876,5]
[361926653,1747894248498,-420.0,0.00032876,5]
[361926654,1747894248509,-420.0,0.00032876,5]
[361926655,1747894248518,-546.99454044,0.00032876,5]
[361926656,1747894248529,-420.0,0.00032876,5]
[361926657,1747894248539,-420.0,0.00032876,5]
[361926658,1747894248548,-402.18809354,0.00032876,5]
[361926659,1747894248557,-420.0,0.00032876,5]
[361926660,1747894248567,-420.0,0.00032876,5]
[361926661,1747894248577,-420.0,0.00032876,5]
[361926662,1747894248587,-420.0,0.00032876,5]
[361926663,1747894248597,-420.0,0.00032876,5]
[361926664,1747894248607,-420.0,0.00032876,5]
[361926665,1747894248618,-420.0,0.00032876,5]
[361926666,1747894248627,-420.0,0.00032876,5]
[361926667,1747894248637,-420.0,0.00032876,5]
[361926668,1747894248647,-420.0,0.00032876,5]
[361926669,1747894248657,-420.0,0.00032876,5]
[361926670,1747894248667,-420.0,0.00032876,5]
[361926671,1747894248677,-421.99459545,0.00032876,5]
[361926672,1747894248686,-420.0,0.00032876,5]
[361926673,1747894248696,-389.58761968,0.00032876,5]